bitfinex/quotes_BTCUSD_20241009
["timestamp","ask_amount","ask_price","bid_price","bid_amount"]
[1728493312905,0.42159927,61812.0,61811.0,0.10412]
[1728493313150,0.42261048,61812.0,61811.0,0.10412]
[1728493313643,0.47265026,61812.0,61811.0,0.10412]
[1728493313878,0.47265026,61812.0,61811.0,0.02082]
[1728493313879,0.68170777,61812.0,61811.0,0.02082]
[1728493314127,0.7037214,61812.0,61811.0,0.02082]
[1728493314782,0.7057214,61812.0,61811.0,0.02082]
[1728493314995,0.70377789,61812.0,61811.0,0.02082]
[1728493315247,0.68977972,61812.0,61811.0,0.02082]
[1728493315459,0.69977674,61812.0,61811.0,0.02082]
[1728493316569,0.86061438,61812.0,61811.0,0.02082]
[1728493316795,0.84560317,61812.0,61811.0,0.02082]
[1728493317042,0.87563094,61812.0,61811.0,0.02082]
[1728493318617,0.73635058,61812.0,61811.0,0.02082]
[1728493318858,0.83245376,61812.0,61811.0,0.02082]
[1728493319190,0.73635058,61812.0,61811.0,0.02082]
[1728493319292,0.71099126,61812.0,61811.0,0.02082]
[1728493319985,0.69598017,61812.0,61811.0,0.02082]
[1728493320222,0.7109962,61812.0,61811.0,0.02082]
[1728493320509,0.83112679,61812.0,61811.0,0.02082]
[1728493320744,0.7109962,61812.0,61811.0,0.02082]
[1728493321888,0.7129962,61812.0,61811.0,0.02082]
[1728493322343,0.8522155,61812.0,61811.0,0.02082]
[1728493322786,0.8502155,61812.0,61811.0,0.02082]
[1728493323034,0.8522155,61812.0,61811.0,0.02082]
[1728493323266,0.83519947,61812.0,61811.0,0.02082]
[1728493323482,0.83720856,61812.0,61811.0,0.02082]
[1728493323699,0.83520856,61812.0,61811.0,0.02082]
[1728493323932,0.74050035,61812.0,61811.0,0.02082]
[1728493324168,0.53403966,61812.0,61811.0,0.02082]
[1728493324913,0.63009872,61812.0,61811.0,0.02082]
[1728493325145,0.64924923,61812.0,61811.0,0.02082]
[1728493325366,0.67326254,61812.0,61811.0,0.02082]
[1728493325824,0.55319017,61812.0,61811.0,0.02082]
[1728493326505,0.55519017,61812.0,61811.0,0.02082]
[1728493327910,0.69927702,61812.0,61811.0,0.02082]
[1728493328166,0.69927702,61812.0,61805.0,0.0976]
[1728493328167,0.44910618,61806.0,61805.0,0.0976]
[1728493328437,0.61027238,61806.0,61805.0,0.0976]
[1728493328681,0.163807,61802.0,61801.0,0.0958]
[1728493328943,0.72506832,61802.0,61801.0,0.0958]
[1728493329172,0.77312102,61802.0,61801.0,0.0958]
[1728493329411,0.67501626,61802.0,61801.0,0.0958]
[1728493329640,0.79514721,61802.0,61801.0,0.0958]
[1728493330232,0.161812,61800.0,61799.0,0.24236353]
[1728493330458,0.32687344,61800.0,61799.0,0.24236353]
[1728493332091,0.39896378,61800.0,61799.0,0.34026353]
[1728493332317,0.33087344,61800.0,61799.0,0.34026353]
[1728493332542,0.32085178,61800.0,61799.0,0.34026353]
[1728493332753,0.33587469,61800.0,61799.0,0.34026353]
[1728493332985,0.32085178,61800.0,61799.0,0.34026353]
[1728493333441,0.40796483,61800.0,61799.0,0.34026353]
[1728493334854,0.33587449,61800.0,61799.0,0.34026353]
[1728493335303,0.40798046,61800.0,61799.0,0.34026353]
[1728493335517,0.40799035,61800.0,61799.0,0.34026353]
[1728493335750,0.39296764,61800.0,61799.0,0.34026353]
[1728493335983,0.4079814,61800.0,61799.0,0.34026353]
[1728493336203,0.35794162,61800.0,61799.0,0.34026353]
[1728493336648,0.38330621,61800.0,61799.0,0.34026353]
[1728493338023,0.43339171,61800.0,61799.0,0.34026353]
[1728493338503,0.43341235,61800.0,61799.0,0.34026353]
[1728493338738,0.43341235,61800.0,61799.0,0.34108353]
[1728493338941,0.36127585,61800.0,61799.0,0.34108353]
[1728493339162,0.62021304,61800.0,61799.0,0.34108353]
[1728493339374,0.4987489,61800.0,61799.0,0.24318353]
[1728493340550,0.4947489,61800.0,61799.0,0.24318353]
[1728493340752,0.5037489,61800.0,61799.0,0.24318353]
[1728493340995,0.4987489,61800.0,61799.0,0.24318353]
[1728493341254,0.4897489,61800.0,61799.0,0.24318353]
[1728493341477,0.5037489,61800.0,61799.0,0.24318353]
[1728493341700,0.67505908,61800.0,61799.0,0.24318353]
[1728493341938,0.67404532,61800.0,61799.0,0.24318353]
[1728493342175,0.68804532,61800.0,61799.0,0.24318353]
[1728493342634,0.70306566,61800.0,61799.0,0.24318353]
[1728493342864,0.69106566,61800.0,61799.0,0.24318353]
[1728493343067,0.70506566,61800.0,61799.0,0.24318353]
[1728493343481,0.69106566,61800.0,61799.0,0.24318353]
[1728493343900,0.70506566,61800.0,61799.0,0.24318353]
[1728493346715,0.73043258,61800.0,61799.0,0.24318353]
[1728493347196,0.73528848,61800.0,61799.0,0.24318353]
[1728493347876,0.87959694,61800.0,61799.0,0.24318353]
[1728493348099,0.73528848,61800.0,61799.0,0.24318353]
[1728493348327,0.86455425,61800.0,61799.0,0.24318353]
[1728493348581,0.87957712,61800.0,61799.0,0.24318353]
[1728493349074,0.73529101,61800.0,61799.0,0.24318353]
[1728493349299,0.8795704,61800.0,61799.0,0.24318353]
[1728493349557,0.85420348,61800.0,61799.0,0.24318353]
[1728493350957,0.87335409,61800.0,61799.0,0.24318353]
[1728493351192,0.7290747,61800.0,61799.0,0.24318353]
[1728493351718,0.72907364,61800.0,61799.0,0.24318353]
[1728493352686,0.94501364,61800.0,61799.0,0.19251554]
[1728493353582,0.85612464,61800.0,61799.0,0.19251554]
[1728493353809,0.88149261,61800.0,61799.0,0.19251554]
[1728493354551,1.25242135,61800.0,61799.0,0.19251554]
[1728493354780,1.20904235,61800.0,61799.0,0.19251554]
[1728493355057,0.77980994,61800.0,61799.0,0.19251554]
[1728493355293,0.99647794,61800.0,61799.0,0.19251554]
[1728493355519,0.92112094,61800.0,61799.0,0.19251554]
[1728493356443,0.77980994,61800.0,61799.0,0.19251554]
[1728493356689,0.91683125,61800.0,61799.0,0.19251554]
[1728493360826,0.89146328,61800.0,61799.0,0.19251554]
[1728493362682,0.9168313,61800.0,61799.0,0.19251554]
[1728493362826,0.9168313,61800.0,61799.0,0.14184771]
[1728493363322,0.9184713,61800.0,61799.0,0.14184771]
[1728493363551,1.06276493,61800.0,61799.0,0.14184771]
[1728493363796,0.9184713,61800.0,61799.0,0.14184771]
[1728493364804,1.06275781,61800.0,61799.0,0.14184771]
[1728493365420,2.46268781,61800.0,61799.0,0.14184771]
[1728493366543,2.3184013,61800.0,61799.0,0.14184771]
[1728493366978,2.2956883,61800.0,61799.0,0.14184771]
[1728493367479,2.2593993,61800.0,61799.0,0.14184771]
[1728493367788,2.25942237,61800.0,61799.0,0.14184771]
[1728493368819,2.16472437,61800.0,61799.0,0.14184771]
[1728493369272,0.163822,61796.0,61795.0,0.00164]
[1728493369525,1.2195321,61796.0,61795.0,0.00164]
[1728493369747,1.20262371,61796.0,61795.0,0.00164]
[1728493371083,1.17235571,61796.0,61795.0,0.00164]
[1728493371309,1.01923471,61796.0,61795.0,0.00164]
[1728493371545,0.86728071,61796.0,61795.0,0.00164]
[1728493372271,0.75598171,61796.0,61795.0,0.00164]
[1728493372734,0.74093824,61796.0,61795.0,0.00164]
[1728493372962,0.61790675,61796.0,61795.0,0.00164]
[1728493373181,0.67952114,61796.0,61795.0,0.00164]
[1728493373402,0.80455263,61796.0,61795.0,0.08064]
[1728493373691,0.62077663,61796.0,61795.0,0.08064]
[1728493373823,0.65499385,61796.0,61795.0,0.08064]
[1728493374076,0.67836251,61796.0,61795.0,0.08064]
[1728493374743,0.68036251,61796.0,61795.0,0.08064]
[1728493375181,0.89066751,61796.0,61795.0,0.08064]
[1728493375395,0.89266751,61796.0,61795.0,0.08064]
[1728493377320,0.89266941,61796.0,61795.0,0.08064]
[1728493377969,0.87775141,61796.0,61795.0,0.08064]
[1728493379365,0.85238275,61796.0,61795.0,0.0299708]
[1728493380043,0.99718728,61796.0,61795.0,0.0299708]
[1728493380628,0.98211877,61796.0,61795.0,0.0299708]
[1728493381035,0.98217043,61796.0,61795.0,0.0299708]
[1728493381249,0.83731424,61796.0,61795.0,0.0299708]
[1728493382573,0.263828,61794.0,61793.0,0.096]
[1728493382803,0.47475114,61794.0,61793.0,0.096]
[1728493383720,0.49390175,61794.0,61793.0,0.096]
[1728493383725,0.49190175,61794.0,61793.0,0.096]
[1728493384389,0.50290175,61794.0,61793.0,0.096]
[1728493384908,0.51290175,61794.0,61793.0,0.096]
[1728493385385,0.527977,61794.0,61793.0,0.096]
[1728493386240,0.65100849,61794.0,61793.0,0.096]
[1728493386453,0.65100849,61794.0,61793.0,0.09682]
[1728493387236,0.63593324,61794.0,61793.0,0.09682]
[1728493387240,0.65099765,61794.0,61793.0,0.09682]
[1728493389278,0.79572625,61794.0,61793.0,0.09682]
[1728493389503,0.65099765,61794.0,61793.0,0.09682]
[1728493389726,0.64899765,61794.0,61793.0,0.09682]
[1728493390212,0.65099765,61794.0,61793.0,0.09682]
[1728493391512,0.64899765,61794.0,61793.0,0.09682]
[1728493391937,0.65099765,61794.0,61793.0,0.09682]
[1728493392374,0.63593324,61794.0,61793.0,0.09682]
[1728493392596,0.65099292,61794.0,61793.0,0.04615008]
[1728493392812,0.67636204,61794.0,61793.0,0.04615008]
[1728493393033,0.55333055,61794.0,61793.0,0.04615008]
[1728493393242,0.67636204,61794.0,61793.0,0.04615008]
[1728493393767,0.66130236,61794.0,61793.0,0.04615008]
[1728493393773,0.65930236,61794.0,61793.0,0.04615008]
[1728493394362,0.5513315,61794.0,61793.0,0.04615008]
[1728493394823,0.67436299,61794.0,61793.0,0.04615008]
[1728493395072,0.67636299,61794.0,61793.0,0.04615008]
[1728493395759,0.5513315,61794.0,61793.0,0.04615008]
[1728493396501,0.67436299,61794.0,61793.0,0.04615008]
[1728493396506,0.67436758,61794.0,61793.0,0.04615008]
[1728493396729,0.66130236,61794.0,61793.0,0.04615008]
[1728493397227,0.65930236,61794.0,61793.0,0.04615008]
[1728493397296,0.66130236,61794.0,61793.0,0.04615008]
[1728493397483,0.67636256,61794.0,61793.0,0.04615008]
[1728493398954,0.65099344,61794.0,61793.0,0.04615008]
[1728493401000,0.65100405,61794.0,61793.0,0.04615008]
[1728493402567,0.63593324,61794.0,61793.0,0.04615008]
[1728493402577,0.6510018,61794.0,61793.0,0.04615008]
[1728493402583,0.67637214,61794.0,61793.0,0.04615008]
[1728493402961,0.67637214,61794.0,61788.0,0.0801]
[1728493402962,0.261841,61789.0,61788.0,0.0801]
[1728493402971,0.45002655,61789.0,61788.0,0.0801]
[1728493403559,0.43495799,61789.0,61788.0,0.0801]
[1728493404459,0.43895799,61789.0,61788.0,0.0801]
[1728493405063,0.44395799,61789.0,61788.0,0.0801]
[1728493405712,0.44395799,61789.0,61788.0,0.1768]
[1728493407217,0.46932884,61789.0,61788.0,0.1768]
[1728493408375,0.47132884,61789.0,61788.0,0.1768]
[1728493408591,0.46932884,61789.0,61788.0,0.1768]
[1728493409262,0.47132884,61789.0,61788.0,0.1768]
[1728493410162,0.46932884,61789.0,61788.0,0.1768]
[1728493410622,0.46932884,61789.0,61788.0,0.17762]
[1728493419313,0.44395799,61789.0,61788.0,0.17762]
[1728493420823,0.44595799,61789.0,61788.0,0.17762]
[1728493421322,0.44395799,61789.0,61788.0,0.17762]
[1728493422254,0.44595799,61789.0,61788.0,0.17762]
[1728493423402,0.44395799,61789.0,61788.0,0.17762]
[1728493423625,0.3209265,61789.0,61788.0,0.17762]
[1728493423854,0.34229725,61789.0,61788.0,0.17762]
[1728493424126,0.09345625,61789.0,61788.0,0.3396071]
[1728493424386,0.16594873,61789.0,61788.0,0.3396071]
[1728493424635,0.02537075,61789.0,61788.0,0.3396071]
[1728493425041,0.02537075,61789.0,61788.0,0.50044474]
[1728493425042,0.05344615,61789.0,61788.0,0.50044474]
[1728493425634,0.06744615,61789.0,61788.0,0.50044474]
[1728493425853,0.05344615,61789.0,61788.0,0.50044474]
[1728493426053,0.05744615,61789.0,61788.0,0.50044474]
[1728493426344,0.05344615,61789.0,61788.0,0.50044474]
[1728493426587,0.05344615,61789.0,61788.0,0.1777641]
[1728493426820,0.05344615,61789.0,61788.0,0.17762]
[1728493426821,0.20228715,61789.0,61788.0,0.17762]
[1728493427105,0.20228715,61789.0,61788.0,0.1777641]
[1728493427362,0.20628715,61789.0,61788.0,0.1777641]
[1728493427846,0.20228715,61789.0,61788.0,0.1777641]
[1728493428414,0.20428715,61789.0,61788.0,0.1777641]
[1728493428788,0.20528715,61789.0,61788.0,0.1777641]
[1728493429009,0.20328715,61789.0,61788.0,0.1777641]
[1728493429515,0.1799164,61789.0,61788.0,0.1777641]
[1728493429994,0.1799164,61789.0,61788.0,0.17762]
[1728493430243,0.1799164,61789.0,61788.0,0.1777641]
[1728493431006,0.29698333,61789.0,61788.0,0.1777641]
[1728493431249,0.29698333,61789.0,61788.0,0.17762]
[1728493431250,0.1799164,61789.0,61788.0,0.17762]
[1728493431440,0.22815959,61789.0,61788.0,0.17762]
[1728493432117,0.21308419,61789.0,61788.0,0.17762]
[1728493432122,0.21312137,61789.0,61788.0,0.17762]
[1728493432299,0.22817837,61789.0,61788.0,0.17762]
[1728493432591,0.22617837,61789.0,61788.0,0.17762]
[1728493432877,0.23517837,61789.0,61788.0,0.17762]
[1728493433041,0.23417837,61789.0,61788.0,0.17762]
[1728493433492,0.23417837,61789.0,61788.0,0.00082]
[1728493433493,0.39488672,61789.0,61788.0,0.00082]
[1728493433704,0.42025626,61789.0,61788.0,0.00082]
[1728493433901,0.50881701,61789.0,61788.0,0.00082]
[1728493434109,0.50881983,61789.0,61788.0,0.00082]
[1728493434521,0.37698166,61789.0,61788.0,0.00082]
[1728493434939,0.38242091,61789.0,61788.0,0.00082]
[1728493435391,0.39242091,61789.0,61788.0,0.00082]
[1728493435447,0.39042091,61789.0,61788.0,0.00082]
[1728493436504,0.37736109,61789.0,61788.0,0.00082]
[1728493436758,0.50694716,61789.0,61788.0,0.00082]
[1728493436976,0.37736109,61789.0,61788.0,0.00082]
[1728493437214,0.37536109,61789.0,61788.0,0.00082]
[1728493438129,0.39041867,61789.0,61788.0,0.00082]
[1728493439584,0.37536109,61789.0,61788.0,0.00082]
[1728493440891,0.39041789,61789.0,61788.0,0.00082]
[1728493442276,0.36504835,61789.0,61788.0,0.00082]
[1728493442280,0.34618575,61789.0,61788.0,0.00082]
[1728493444946,0.37155522,61789.0,61788.0,0.00082]
[1728493447941,0.37355522,61789.0,61788.0,0.00082]
[1728493448447,0.50529825,61789.0,61788.0,0.00082]
[1728493448919,0.52443716,61789.0,61788.0,0.00082]
[1728493449394,0.49906769,61789.0,61788.0,0.00082]
[1728493449657,0.34618575,61789.0,61788.0,0.00082]
[1728493450513,0.46691132,61789.0,61788.0,0.00082]
[1728493451656,0.34618575,61789.0,61788.0,0.00082]
[1728493453872,0.37155517,61789.0,61788.0,0.00082]
[1728493455356,0.35649837,61789.0,61788.0,0.00082]
[1728493455359,0.37155229,61789.0,61788.0,0.00082]
[1728493455366,0.161851,61785.0,61784.0,0.06722]
[1728493455493,0.17690492,61785.0,61784.0,0.06722]
[1728493456618,0.18790492,61785.0,61784.0,0.06722]
[1728493458600,0.172851,61785.0,61784.0,0.06722]
[1728493458603,0.18791069,61785.0,61784.0,0.06722]
[1728493462797,0.21328047,61785.0,61784.0,0.06722]
[1728493464919,0.19822078,61785.0,61784.0,0.06722]
[1728493464924,0.21330394,61785.0,61784.0,0.06722]
[1728493465240,0.26159435,61785.0,61784.0,0.06722]
[1728493465330,0.31194717,61785.0,61784.0,0.06722]
[1728493465569,0.26365676,61785.0,61784.0,0.06722]
[1728493467900,0.0867226,61785.0,61784.0,0.06722]
[1728493468494,0.03636978,61785.0,61784.0,0.1480641]
[1728493468502,0.05144732,61785.0,61784.0,0.3099181]
[1728493468509,0.05144732,61785.0,61784.0,0.31315477]
[1728493468638,0.05144732,61785.0,61784.0,0.49967771]
[1728493468856,0.05144732,61785.0,61784.0,0.49644104]
[1728493469117,0.05144732,61785.0,61784.0,0.47157574]
[1728493469308,0.02607754,61785.0,61784.0,0.47157574]
[1728493469845,0.02107754,61785.0,61784.0,0.47157574]
[1728493470297,0.02007754,61785.0,61784.0,0.47157574]
[1728493471247,0.02007346,61785.0,61784.0,0.47157574]
[1728493471256,0.02107346,61785.0,61784.0,0.65309017]
[1728493471564,0.02107346,61785.0,61784.0,0.49457574]
[1728493472161,0.02107346,61785.0,61784.0,0.49957574]
[1728493472386,0.00164,61789.0,61788.0,0.49411859]
[1728493472675,0.00164,61791.0,61790.0,0.0051441]
[1728493472915,0.00164,61791.0,61790.0,0.72737294]
[1728493473076,0.00164,61791.0,61790.0,0.72413716]
[1728493473436,0.00164,61794.0,61793.0,0.48230559]
[1728493473544,0.00164,61794.0,61793.0,0.64314323]
[1728493475373,0.0253601,61795.0,61794.0,0.1899721]
[1728493475607,0.00164,61811.0,61799.0,0.1899581]
[1728493475912,0.00164,61811.0,61799.0,0.65026234]
[1728493476065,0.00164,61811.0,61799.0,0.64702723]
[1728493476257,0.00800072,61807.0,61799.0,0.64702723]
[1728493476556,0.00800072,61807.0,61806.0,0.1899401]
[1728493476752,0.00164,61811.0,61810.0,0.1899301]
[1728493477009,0.00164,61811.0,61810.0,0.65743429]
[1728493477397,0.00164,61811.0,61810.0,0.65419923]
[1728493478953,0.00164,61811.0,61810.0,0.50316774]
[1728493478961,0.00164,61811.0,61810.0,0.0824441]
[1728493478970,0.30451589,61811.0,61810.0,0.0001441]
[1728493479183,0.28845449,61811.0,61810.0,0.0141441]
[1728493479366,0.00364,61811.0,61810.0,0.0071441]
[1728493479592,0.164423,61811.0,61810.0,0.0071441]
[1728493479892,0.166423,61811.0,61810.0,0.0001441]
[1728493480421,0.161788,61809.0,61808.0,0.0001441]
[1728493482053,0.163788,61809.0,61808.0,0.0001441]
[1728493482286,0.168428,61809.0,61808.0,0.0001441]
[1728493482501,0.00664,61809.0,61807.0,0.0001441]
[1728493482727,0.161791,61808.0,61807.0,0.0001441]
[1728493482967,0.330218,61809.0,61802.0,0.244105]
[1728493482968,0.168428,61809.0,61808.0,0.0001441]
[1728493483445,0.161791,61808.0,61807.0,0.0001441]
[1728493484101,0.163791,61808.0,61807.0,0.0001441]
[1728493484602,0.17877575,61808.0,61807.0,0.0001441]
[1728493484801,0.323598,61805.0,61802.0,0.0001441]
[1728493485099,0.01698475,61808.0,61803.0,0.0001441]
[1728493485100,0.50038875,61804.0,61803.0,0.0001441]
[1728493485527,0.50038875,61804.0,61798.0,0.2453305]
[1728493485528,0.161807,61802.0,61798.0,0.2453305]
[1728493485754,0.161807,61802.0,61801.0,0.0001441]
[1728493485974,0.17681117,61802.0,61801.0,0.0001441]
[1728493486213,0.01500417,61802.0,61801.0,0.0001441]
[1728493486418,0.0403659,61802.0,61801.0,0.1619531]
[1728493486878,0.0413659,61802.0,61801.0,0.1619531]
[1728493487094,0.0403659,61802.0,61801.0,0.0001441]
[1728493488535,0.0413659,61802.0,61801.0,0.1619531]
[1728493489010,0.0413659,61802.0,61801.0,0.0001441]
[1728493489265,0.2031729,61802.0,61801.0,0.0001441]
[1728493489508,0.17781117,61802.0,61801.0,0.0001441]
[1728493490237,0.17781117,61802.0,61799.0,0.0001441]
[1728493490486,0.34914211,61798.0,61797.0,0.0001441]
[1728493490755,0.161828,61794.0,61793.0,0.0001441]
[1728493491155,0.17683217,61794.0,61793.0,0.0001441]
[1728493492724,0.20719743,61794.0,61793.0,0.0001441]
[1728493495768,0.04536943,61794.0,61792.0,0.0001441]
[1728493495985,0.04536943,61794.0,61786.0,0.0001441]
[1728493495986,0.161846,61787.0,61786.0,0.0001441]
[1728493496194,0.17685017,61787.0,61786.0,0.0001441]
[1728493496657,0.20221799,61787.0,61786.0,0.0001441]
[1728493497091,0.18721382,61787.0,61786.0,0.0001441]
[1728493497762,0.18721382,61787.0,61786.0,0.0031441]
[1728493497968,0.20225039,61787.0,61786.0,0.003]
[1728493498407,0.20325039,61787.0,61786.0,0.003]
[1728493498641,0.20225039,61787.0,61786.0,0.003]
[1728493499107,0.18721382,61787.0,61786.0,0.003]
[1728493499562,0.161846,61787.0,61786.0,0.003]
[1728493499771,0.161851,61785.0,61784.0,0.0009641]
[1728493501302,0.34917611,61785.0,61784.0,0.00082]
[1728493501311,0.36831151,61785.0,61784.0,0.00082]
[1728493502136,0.37231151,61785.0,61784.0,0.00082]
[1728493502719,0.36831151,61785.0,61784.0,0.00082]
[1728493503455,0.37531151,61785.0,61784.0,0.00082]
[1728493504198,0.40668192,61785.0,61784.0,0.00182]
[1728493506245,0.38754652,61785.0,61784.0,0.00182]
[1728493506739,0.20022141,61785.0,61784.0,0.00182]
[1728493508546,0.38754652,61785.0,61784.0,0.00182]
[1728493509411,0.161867,61779.0,61778.0,0.0026471]
[1728493511104,0.18101581,61779.0,61778.0,0.0026471]
[1728493511108,0.28101581,61779.0,61778.0,0.0026471]
[1728493511773,0.28201699,61779.0,61778.0,0.0026471]
[1728493511976,0.28401699,61779.0,61778.0,0.0026471]
[1728493512204,0.29902593,61779.0,61778.0,0.0026471]
[1728493512418,0.50035104,61779.0,61778.0,0.0026471]
[1728493512636,0.48635104,61779.0,61778.0,0.0026471]
[1728493513307,0.48334911,61779.0,61778.0,0.0026471]
[1728493513528,0.51034911,61779.0,61778.0,0.0036471]
[1728493513767,0.51035034,61779.0,61778.0,0.0036471]
[1728493514207,0.52272472,61779.0,61778.0,0.0026471]
[1728493514376,0.53572472,61779.0,61778.0,0.0036471]
[1728493514942,0.50872472,61779.0,61778.0,0.0026471]
[1728493514995,0.68256236,61779.0,61778.0,0.0036471]
[1728493515230,0.69656236,61779.0,61778.0,0.0036471]
[1728493515558,0.68456236,61779.0,61778.0,0.0036471]
[1728493515670,0.69856236,61779.0,61778.0,0.0036471]
[1728493516415,0.69656236,61779.0,61778.0,0.0036471]
[1728493517113,0.68355412,61779.0,61778.0,0.0036471]
[1728493517350,0.69856239,61779.0,61778.0,0.0036471]
[1728493517393,0.69656239,61779.0,61778.0,0.0036471]
[1728493518151,0.69856239,61779.0,61778.0,0.0036471]
[1728493518401,0.69656239,61779.0,61778.0,0.0036471]
[1728493518907,0.69856239,61779.0,61778.0,0.0036471]
[1728493519165,0.69856239,61779.0,61778.0,0.0044671]
[1728493519395,0.67118801,61779.0,61778.0,0.0044671]
[1728493519899,0.67318801,61779.0,61778.0,0.0044671]
[1728493520591,0.84298801,61779.0,61778.0,0.0044671]
[1728493522623,0.86836388,61779.0,61778.0,0.0044671]
[1728493523388,0.86636388,61779.0,61778.0,0.0044671]
[1728493524283,0.85135561,61779.0,61778.0,0.0044671]
[1728493524719,0.90141712,61779.0,61778.0,0.0044671]
[1728493525396,0.90341712,61779.0,61778.0,0.0044671]
[1728493525631,0.90141712,61779.0,61778.0,0.0044671]
[1728493526179,0.73161712,61779.0,61778.0,0.0044671]
[1728493526385,0.47508051,61779.0,61778.0,0.0044671]
[1728493526624,0.31424287,61779.0,61778.0,0.0044671]
[1728493526859,0.50156798,61779.0,61778.0,0.0044671]
[1728493527269,0.64934088,61779.0,61778.0,0.0044671]
[1728493527475,0.50156798,61779.0,61778.0,0.0044671]
[1728493527687,0.55165784,61779.0,61778.0,0.0044671]
[1728493528137,0.50156798,61779.0,61778.0,0.0044671]
[1728493528628,0.55167003,61779.0,61778.0,0.0044671]
[1728493528814,0.55367003,61779.0,61778.0,0.0044671]
[1728493529028,0.73165825,61779.0,61778.0,0.0044671]
[1728493529275,0.74670067,61779.0,61778.0,0.0044671]
[1728493529490,0.7213248,61779.0,61778.0,0.0044671]
[1728493530256,0.8012248,61779.0,61778.0,0.0044671]
[1728493530769,0.78618238,61779.0,61778.0,0.0044671]
[1728493531084,0.78418238,61779.0,61778.0,0.0044671]
[1728493531295,0.7992302,61779.0,61778.0,0.0044671]
[1728493531546,0.8008702,61779.0,61778.0,0.0044671]
[1728493532044,0.7229702,61779.0,61778.0,0.0044671]
[1728493532300,0.70381962,61779.0,61778.0,0.0044671]
[1728493532521,0.54186943,61779.0,61778.0,0.0044671]
[1728493533253,0.54186943,61779.0,61778.0,0.0034671]
[1728493533254,0.51382161,61779.0,61778.0,0.0034671]
[1728493533539,0.35298397,61779.0,61778.0,0.0034671]
[1728493533724,0.35298397,61779.0,61778.0,0.0044671]
[1728493533725,0.21588192,61779.0,61778.0,0.0044671]
[1728493534356,0.20188192,61779.0,61778.0,0.0044671]
[1728493534587,0.04001492,61779.0,61778.0,0.0044671]
[1728493534810,0.21588192,61779.0,61778.0,0.0044671]
[1728493535037,0.20188192,61779.0,61778.0,0.0044671]
[1728493535243,0.19588192,61779.0,61778.0,0.0034671]
[1728493535473,0.20088192,61779.0,61778.0,0.0044671]
[1728493535923,0.20488192,61779.0,61778.0,0.0044671]
[1728493536186,0.03101492,61779.0,61778.0,0.77879338]
[1728493536450,0.00824317,61791.0,61785.0,0.005]
[1728493536999,0.03361293,61791.0,61790.0,0.52896311]
[1728493537010,0.02536976,61791.0,61790.0,0.52896311]
[1728493537333,0.04042665,61791.0,61790.0,0.66318148]
[1728493537551,0.04042665,61791.0,61790.0,0.69118148]
[1728493537773,0.02536976,61791.0,61790.0,0.69118148]
[1728493538499,0.02636976,61791.0,61790.0,0.69218148]
[1728493539145,0.02736976,61791.0,61790.0,0.69818148]
[1728493539347,0.002,61791.0,61790.0,0.69818148]
[1728493539954,0.002,61791.0,61790.0,0.85901912]
[1728493540139,0.002,61791.0,61790.0,0.86101912]
[1728493540337,0.00164,61800.0,61799.0,0.339514]
[1728493540646,0.00164,61800.0,61799.0,0.71067675]
[1728493540803,0.00164,61804.0,61803.0,0.166804]
[1728493541000,0.00164,61804.0,61803.0,0.7127748]
[1728493541187,0.00164,61804.0,61803.0,0.71066675]
[1728493541364,0.00164,61804.0,61803.0,0.87147336]
[1728493541889,0.49996893,61825.0,61810.0,0.007]
[1728493542124,0.49996893,61825.0,61810.0,0.62014875]
[1728493542484,0.49996893,61825.0,61824.0,0.161749]
[1728493542968,0.49996893,61825.0,61824.0,0.50372106]
[1728493542974,0.49996893,61825.0,61824.0,0.56203921]
[1728493544032,0.49996893,61825.0,61824.0,0.56703921]
[1728493544482,0.49996893,61825.0,61824.0,0.59203921]
[1728493544707,0.49996893,61825.0,61824.0,0.70303921]
[1728493544934,0.40096893,61825.0,61824.0,0.70303921]
[1728493545168,0.20009966,61825.0,61824.0,0.70303921]
[1728493545606,0.19909966,61825.0,61824.0,0.69203921]
[1728493545837,0.19909966,61825.0,61824.0,0.70203921]
[1728493546428,0.20009966,61825.0,61824.0,0.70903921]
[1728493546433,0.20109966,61825.0,61824.0,0.70903921]
[1728493549749,0.20109966,61825.0,61824.0,0.60903921]
[1728493551129,0.20109966,61825.0,61824.0,0.180749]
[1728493551399,0.36284566,61825.0,61824.0,0.019]
[1728493551620,0.36360992,61825.0,61824.0,0.019]
[1728493551855,0.36284566,61825.0,61824.0,0.01]
[1728493552158,0.36184566,61825.0,61824.0,0.01]
[1728493552595,0.161758,61821.0,61818.0,0.24236353]
[1728493552599,0.323504,61823.0,61818.0,0.24236353]
[1728493552797,0.22545407,61825.0,61814.0,0.161774]
[1728493552975,0.22545407,61825.0,61815.0,0.24236353]
[1728493553174,0.161761,61820.0,61815.0,0.40413553]
[1728493553406,0.32351,61822.0,61815.0,0.24236353]
[1728493553669,0.18732511,61822.0,61804.0,0.323603]
[1728493553891,0.323537,61817.0,61809.0,0.161786]
[1728493554193,0.22445407,61825.0,61804.0,0.161801]
[1728493554194,0.16179,61809.0,61804.0,0.161801]
[1728493554353,0.323557,61813.0,61808.0,0.24236353]
[1728493554560,0.02535909,61808.0,61801.0,0.56598153]
[1728493554799,0.02535909,61808.0,61801.0,0.24236353]
[1728493555014,0.161795,61807.0,61802.0,0.161806]
[1728493555317,0.02535909,61808.0,61798.0,0.323631]
[1728493555942,0.02535909,61808.0,61798.0,0.16083764]
[1728493556097,0.02535909,61808.0,61800.0,0.323624]
[1728493556216,0.02535909,61808.0,61794.0,0.24236353]
[1728493556489,0.161805,61803.0,61798.0,0.161816]
[1728493557533,0.161802,61804.0,61799.0,0.161813]
[1728493557796,0.161803,61804.0,61799.0,0.161814]
[1728493558025,0.161803,61804.0,61797.0,0.323637]
[1728493558267,0.161803,61804.0,61800.0,0.161811]
[1728493558469,0.161799,61805.0,61800.0,0.161811]
[1728493559020,0.18715109,61808.0,61803.0,0.161803]
[1728493559029,0.18715209,61808.0,61803.0,0.161803]
[1728493559235,0.18715009,61808.0,61803.0,0.161803]
[1728493559387,0.02535909,61808.0,61801.0,0.24559932]
[1728493559607,0.323546,61815.0,61805.0,0.323597]
[1728493559776,0.323546,61815.0,61806.0,0.32682749]
[1728493559777,0.1,61814.0,61806.0,0.32682749]
[1728493559979,0.261776,61814.0,61809.0,0.161787]
[1728493560170,0.161779,61813.0,61808.0,0.161789]
[1728493560376,0.1,61814.0,61807.0,0.323586]
[1728493560588,0.161782,61812.0,61808.0,0.00323549]
[1728493560826,0.323562,61812.0,61804.0,0.323601]
[1728493561073,0.161782,61812.0,61808.0,0.161791]
[1728493561998,0.0151,61814.0,61809.0,0.001]
[1728493562009,0.0151,61814.0,61813.0,0.161778]